bitfinex/quotes_BTCUSD_20241229
["timestamp","ask_amount","ask_price","bid_price","bid_amount"]
[1735475360822,1.89070653,95200.0,95199.0,0.03310415]
[1735475361665,1.90718514,95200.0,95199.0,0.03310415]
[1735475362254,1.76550893,95200.0,95199.0,0.03310415]
[1735475364372,1.74903032,95200.0,95199.0,0.03310415]
[1735475364559,1.93793194,95200.0,95199.0,0.03310415]
[1735475365708,1.93793194,95200.0,95199.0,0.00013639]
[1735475365910,2.04191826,95200.0,95199.0,0.00013639]
[1735475367739,2.05839698,95200.0,95199.0,0.00013639]
[1735475369378,1.86949536,95200.0,95193.0,0.06848769]
[1735475369581,1.798065,95199.0,95193.0,0.06853858]
[1735475369884,0.10398632,95198.0,95193.0,0.06853858]
[1735475370210,0.09461325,95195.0,95193.0,0.06853858]
[1735475370336,1.33507,95194.0,95193.0,0.06853858]
[1735475370544,1.32347,95194.0,95193.0,0.06853858]
[1735475370969,1.068517,95194.0,95193.0,0.06853858]
[1735475371167,0.64155,95194.0,95193.0,0.06853858]
[1735475371581,0.64155,95194.0,95193.0,0.06953858]
[1735475371761,0.73616325,95194.0,95193.0,0.06953858]
[1735475374646,0.09461325,95194.0,95193.0,0.06953858]
[1735475375033,0.90760125,95194.0,95193.0,0.06953858]
[1735475378326,0.90760125,95194.0,95193.0,0.06853858]
[1735475378518,0.90860125,95194.0,95193.0,0.06853858]
[1735475378887,0.90760125,95194.0,95193.0,0.06853858]
[1735475379464,0.9250801,95194.0,95193.0,0.06853858]
[1735475380664,0.9240801,95194.0,95193.0,0.06853858]
[1735475381025,0.83046685,95194.0,95193.0,0.06853858]
[1735475381243,0.83146685,95194.0,95193.0,0.06853858]
[1735475381456,0.51808685,95194.0,95193.0,0.06853858]
[1735475383912,0.350181,95194.0,95193.0,0.06853858]
[1735475385371,0.350181,95194.0,95193.0,0.06862408]
[1735475385544,0.350352,95194.0,95193.0,0.06862408]
[1735475388081,0.002171,95194.0,95193.0,0.06862408]
[1735475388281,0.64083985,95194.0,95193.0,0.06862408]
[1735475392050,0.7354568,95194.0,95193.0,0.06862408]
[1735475394501,0.71897795,95194.0,95193.0,0.00013639]
[1735475395633,0.81696728,95194.0,95193.0,0.00013639]
[1735475399380,0.83344619,95194.0,95193.0,0.00013639]
[1735475399764,0.73882924,95194.0,95193.0,0.00013639]
[1735475401538,0.73782924,95194.0,95193.0,0.00013639]
[1735475402008,0.73882924,95194.0,95193.0,0.00013639]
[1735475402626,0.11663924,95194.0,95193.0,0.00013639]
[1735475402828,0.25853345,95194.0,95193.0,0.00013639]
[1735475403063,2.07309512,95194.0,95193.0,0.00013639]
[1735475403779,2.07209512,95194.0,95193.0,0.00013639]
[1735475403962,1.89168812,95194.0,95193.0,0.00013639]
[1735475404170,1.83361612,95194.0,95193.0,0.00013639]
[1735475404317,1.93760244,95194.0,95193.0,0.00013639]
[1735475404525,1.92112353,95194.0,95193.0,0.00013639]
[1735475404932,1.92012353,95194.0,95193.0,0.00013639]
[1735475405579,1.92112353,95194.0,95193.0,0.00013639]
[1735475405874,1.92012353,95194.0,95193.0,0.00013639]
[1735475406623,2.02410985,95194.0,95193.0,0.00013639]
[1735475406827,2.06960044,95194.0,95193.0,0.00013639]
[1735475407034,1.92770623,95194.0,95193.0,0.00013639]
[1735475407664,1.92670623,95194.0,95193.0,0.00013639]
[1735475407857,1.92770623,95194.0,95193.0,0.00013639]
[1735475408067,1.90119466,95194.0,95193.0,0.00013639]
[1735475408265,1.90019466,95194.0,95193.0,0.00013639]
[1735475408643,1.90119466,95194.0,95193.0,0.00013639]
[1735475408941,1.90019466,95194.0,95193.0,0.00013639]
[1735475409343,1.91767448,95194.0,95193.0,0.00013639]
[1735475409671,1.91767448,95194.0,95173.0,0.07155251]
[1735475409898,4.51005664,95193.0,95186.0,5.092e-05]
[1735475410130,4.052626,95192.0,95186.0,5.092e-05]
[1735475410266,0.10398632,95191.0,95186.0,5.092e-05]
[1735475410621,4.02873,95190.0,95186.0,5.092e-05]
[1735475410776,4.02873,95190.0,95170.0,0.04178861]
[1735475410777,0.18328632,95189.0,95170.0,0.04178861]
[1735475410982,0.18328632,95189.0,95170.0,0.04229802]
[1735475410983,3.882327,95188.0,95170.0,0.04229802]
[1735475411179,0.10398632,95187.0,95170.0,0.04229802]
[1735475411407,3.688575,95186.0,95170.0,0.04229802]
[1735475411604,3.68698232,95185.0,95170.0,0.04229802]
[1735475411826,0.01648105,95183.0,95170.0,0.04229802]
[1735475412129,2.737643,95182.0,95170.0,0.04229802]
[1735475413686,3.038486,95183.0,95170.0,0.04229802]
[1735475413884,2.93211932,95183.0,95170.0,0.03880608]
[1735475414085,2.78376432,95182.0,95170.0,0.00050941]
[1735475414452,0.974221,95181.0,95171.0,0.0797]
[1735475414661,0.0793,95180.0,95170.0,0.00050941]
[1735475414806,2.156587,95179.0,95170.0,0.00050941]
[1735475415011,1.645996,95178.0,95170.0,0.00050941]
[1735475415212,2.13304,95181.0,95170.0,0.00050941]
[1735475415390,0.10498632,95182.0,95170.0,0.00050941]
[1735475415391,0.10398632,95180.0,95170.0,0.00050941]
[1735475415610,2.617698,95181.0,95170.0,0.00050941]
[1735475415865,2.621635,95181.0,95170.0,0.00050941]
[1735475416065,2.633244,95180.0,95170.0,0.00050941]
[1735475416316,0.001,95181.0,95170.0,0.00050941]
[1735475416317,2.51467632,95179.0,95170.0,0.00050941]
[1735475416526,2.05757,95178.0,95170.0,0.00050941]
[1735475416712,0.10398632,95177.0,95170.0,0.00050941]
[1735475416992,1.807608,95176.0,95170.0,0.00050941]
[1735475417375,0.10398632,95175.0,95170.0,0.00050941]
[1735475417574,1.969829,95174.0,95170.0,0.00050941]
[1735475418138,2.07381532,95174.0,95170.0,0.00050941]
[1735475418341,1.84326032,95173.0,95170.0,0.00050941]
[1735475418554,1.688851,95172.0,95170.0,0.00050941]
[1735475418750,0.10398632,95171.0,95170.0,0.00050941]
[1735475418949,2.63849932,95171.0,95170.0,0.00050941]
[1735475419130,2.63641232,95171.0,95170.0,0.00050941]
[1735475419363,2.52187564,95171.0,95170.0,0.00050941]
[1735475420213,2.52387564,95171.0,95170.0,0.00050941]
[1735475420419,2.60187564,95171.0,95170.0,0.00059481]
[1735475420724,2.59987564,95171.0,95170.0,0.00059481]
[1735475421041,2.64827564,95171.0,95170.0,0.00059481]
[1735475421399,2.65327564,95171.0,95170.0,0.00059481]
[1735475421589,2.75327564,95171.0,95170.0,0.00059481]
[1735475421789,2.74827564,95171.0,95170.0,0.00059481]
[1735475422141,2.75627564,95171.0,95170.0,0.00059481]
[1735475422282,2.94038551,95171.0,95170.0,0.00059481]
[1735475422710,2.94638551,95171.0,95170.0,0.00059481]
[1735475423130,0.1,95167.0,95166.0,8.54e-05]
[1735475423337,3.24319034,95167.0,95166.0,8.54e-05]
[1735475423585,3.31251191,95167.0,95166.0,8.54e-05]
[1735475423942,3.12075534,95167.0,95166.0,8.54e-05]
[1735475424163,2.51308932,95167.0,95166.0,8.54e-05]
[1735475424410,1.80634932,95167.0,95166.0,8.54e-05]
[1735475424787,0.141831,95167.0,95166.0,0.0450854]
[1735475424956,0.150831,95167.0,95166.0,0.0450854]
[1735475425163,0.141831,95167.0,95166.0,0.1219854]
[1735475425617,0.19692292,95167.0,95166.0,8.54e-05]
[1735475425798,2.011041,95167.0,95166.0,8.54e-05]
[1735475425971,2.644138,95170.0,95166.0,8.54e-05]
[1735475426176,2.699806,95170.0,95166.0,8.54e-05]
[1735475426608,0.10398632,95169.0,95166.0,8.54e-05]
[1735475426938,2.66550932,95168.0,95166.0,8.54e-05]
[1735475427052,2.55001632,95167.0,95166.0,8.54e-05]
[1735475427252,2.55101632,95167.0,95166.0,8.54e-05]
[1735475427452,2.55001632,95167.0,95151.0,0.07033091]
[1735475427660,2.1586,95166.0,95151.0,0.07033091]
[1735475427875,0.20797264,95165.0,95131.0,0.1]
[1735475428150,4.20838664,95165.0,95131.0,0.1]
[1735475428349,3.230177,95164.0,95134.0,0.1000854]
[1735475428553,0.01648724,95158.0,95134.0,8.54e-05]
[1735475428754,2.472471,95157.0,95134.0,8.54e-05]
[1735475428975,0.10398632,95156.0,95134.0,8.54e-05]
[1735475429181,0.10398632,95155.0,95134.0,8.54e-05]
[1735475429376,2.094092,95154.0,95134.0,8.54e-05]
[1735475429589,2.54299132,95153.0,95134.0,8.54e-05]
[1735475429792,3.504682,95152.0,95134.0,8.54e-05]
[1735475430031,0.11761859,95151.0,95134.0,8.54e-05]
[1735475430210,3.46185859,95151.0,95134.0,8.54e-05]
[1735475430391,3.352627,95150.0,95134.0,8.54e-05]
[1735475430600,0.01648893,95148.0,95134.0,8.54e-05]
[1735475430810,2.96608632,95147.0,95134.0,8.54e-05]
[1735475431026,2.72322132,95146.0,95134.0,8.54e-05]
[1735475431235,2.65126232,95145.0,95134.0,8.54e-05]
[1735475431430,2.759851,95144.0,95134.0,8.54e-05]
[1735475431596,0.10398632,95143.0,95134.0,8.54e-05]
[1735475431853,3.80050832,95143.0,95134.0,8.54e-05]
[1735475432015,3.84114132,95142.0,95134.0,8.54e-05]
[1735475432219,3.87968132,95141.0,95134.0,8.54e-05]
[1735475432420,3.593582,95140.0,95134.0,8.54e-05]
[1735475432619,0.10398632,95139.0,95134.0,8.54e-05]
[1735475432854,3.03192432,95139.0,95134.0,8.54e-05]
[1735475433055,2.923981,95138.0,95134.0,8.54e-05]
[1735475433211,0.10398632,95137.0,95135.0,0.01435938]
[1735475433410,3.075737,95136.0,95135.0,0.01435938]
[1735475433610,3.16408332,95136.0,95135.0,0.01435938]
[1735475434558,2.60299732,95136.0,95135.0,0.01444478]
[1735475434760,2.15484412,95136.0,95135.0,0.01444478]
[1735475434916,2.09370312,95136.0,95135.0,0.01444478]
[1735475435115,2.08970312,95136.0,95135.0,0.01444478]
[1735475435410,2.08970312,95136.0,95135.0,0.01019474]
[1735475435622,2.09370312,95136.0,95135.0,0.01019474]
[1735475436562,2.09670312,95136.0,95135.0,0.01019474]
[1735475437436,2.11319277,95136.0,95135.0,0.01019474]
[1735475437637,1.22316697,95136.0,95135.0,0.01019474]
[1735475439603,0.12747597,95136.0,95135.0,0.01019474]
[1735475440191,0.02348965,95136.0,95135.0,0.01019474]
[1735475440798,1.55343565,95136.0,95135.0,0.01019474]
[1735475440999,1.85485997,95136.0,95135.0,0.01019474]
[1735475441204,1.83375997,95136.0,95135.0,0.01019474]
[1735475441538,1.78467829,95136.0,95135.0,0.01019474]
[1735475443052,1.77767829,95136.0,95135.0,0.01019474]
[1735475443298,1.85307829,95136.0,95135.0,0.01019474]
[1735475443473,1.89917829,95136.0,95135.0,0.01019474]
[1735475443898,1.88568864,95136.0,95135.0,0.01019474]
[1735475444053,1.76418864,95136.0,95135.0,0.01019474]
[1735475444216,1.76918864,95136.0,95135.0,0.00698681]
[1735475444432,1.76118864,95136.0,95135.0,0.00698681]
[1735475444637,1.76618864,95136.0,95135.0,0.00698681]
[1735475445473,1.77518864,95136.0,95135.0,0.00698681]
[1735475446578,1.77018864,95136.0,95135.0,0.00698681]
[1735475446921,1.77518864,95136.0,95135.0,0.00698681]
[1735475447136,1.7916786,95136.0,95135.0,0.00698681]
[1735475447640,1.7866786,95136.0,95135.0,0.00698681]
[1735475448040,1.7916786,95136.0,95135.0,0.00698681]
[1735475449123,1.80965762,95136.0,95135.0,0.00698681]
[1735475449323,1.80965762,95136.0,95135.0,0.00223512]
[1735475449707,1.7056713,95136.0,95135.0,0.00223512]
[1735475449910,1.68769228,95136.0,95135.0,0.00223512]
[1735475452647,1.68769228,95136.0,95135.0,0.07803512]
[1735475452852,1.41397428,95136.0,95135.0,0.07803512]
[1735475453066,1.41397428,95136.0,95135.0,0.00223512]
[1735475453606,1.39748432,95136.0,95135.0,0.00223512]
[1735475456910,1.41397591,95136.0,95135.0,0.00223512]
[1735475460860,1.41414691,95136.0,95135.0,0.00223512]
[1735475461868,1.40914691,95136.0,95135.0,0.00223512]
[1735475462070,1.41414691,95136.0,95135.0,0.00223512]
[1735475463014,1.51813323,95136.0,95135.0,0.00223512]
[1735475463754,1.49664164,95136.0,95135.0,0.00223512]
[1735475464131,1.31629632,95136.0,95135.0,0.00223512]
[1735475464975,1.1814854,95136.0,95135.0,0.00223512]
[1735475465619,0.492504,95136.0,95135.0,0.00223512]
[1735475465843,0.483504,95136.0,95135.0,0.00223512]
[1735475466063,0.09416007,95150.0,95135.0,0.00223512]
[1735475466267,0.009,95136.0,95135.0,0.00223512]
[1735475466469,0.629741,95136.0,95135.0,0.00223512]
[1735475466678,1.940554,95148.0,95135.0,0.00223512]
[1735475466848,2.21398762,95148.0,95135.0,0.00223512]
[1735475467046,1.919561,95147.0,95135.0,0.00223512]
[1735475467470,0.01648954,95145.0,95135.0,0.00223512]
[1735475467628,1.156957,95144.0,95135.0,0.00223512]
[1735475468174,0.003,95136.0,95135.0,0.00223512]
[1735475468375,0.626128,95136.0,95135.0,0.00223512]
[1735475468576,0.626128,95136.0,95135.0,0.00323512]
[1735475468776,0.477363,95136.0,95135.0,0.00323512]
[1735475469108,0.477363,95136.0,95135.0,0.00223512]
[1735475469309,0.472363,95136.0,95135.0,0.00323512]
[1735475469488,0.453986,95136.0,95135.0,0.00223512]
[1735475469754,0.01648954,95145.0,95135.0,0.00223512]
[1735475469755,1.243763,95144.0,95135.0,0.00223512]
[1735475469934,0.003,95136.0,95135.0,0.00223512]
[1735475470147,0.366017,95136.0,95135.0,0.00223512]
[1735475470349,0.424915,95136.0,95135.0,0.00223512]
[1735475470672,0.361452,95136.0,95135.0,0.00223512]
[1735475471872,0.359452,95136.0,95135.0,0.00223512]
[1735475472085,0.359452,95136.0,95135.0,0.00323512]
[1735475472797,0.359452,95136.0,95135.0,0.00223512]
[1735475472997,0.361452,95136.0,95135.0,0.00223512]
[1735475475520,0.361452,95136.0,95135.0,0.01482717]
[1735475475731,0.003,95136.0,95135.0,0.18372144]
[1735475475971,0.003,95136.0,95135.0,0.18477241]
[1735475476422,0.002,95136.0,95135.0,0.18477241]
[1735475476623,0.002171,95136.0,95135.0,0.18477241]
[1735475477068,0.01866006,95136.0,95135.0,0.18477241]
[1735475478251,0.01966006,95136.0,95135.0,0.19077241]
[1735475478404,0.01866006,95136.0,95135.0,0.18477241]
[1735475478612,0.01966006,95136.0,95135.0,0.19177241]
[1735475479021,0.01766006,95136.0,95135.0,0.19177241]
[1735475479312,0.01766006,95136.0,95135.0,0.19377241]
[1735475479853,0.01766006,95136.0,95135.0,0.19177241]
[1735475480237,0.01766006,95136.0,95135.0,0.19477241]
[1735475481539,0.01766006,95136.0,95135.0,0.22886819]
[1735475481741,0.01766006,95136.0,95135.0,0.22781722]
[1735475481874,0.01766006,95136.0,95135.0,0.19372144]
[1735475482069,0.01766006,95136.0,95135.0,0.19476603]
[1735475483732,0.001171,95136.0,95135.0,0.24396603]
[1735475483930,0.001171,95136.0,95135.0,0.24292144]
[1735475484162,0.001171,95136.0,95135.0,0.27722212]
[1735475484736,0.001171,95136.0,95135.0,0.24292144]
[1735475484958,0.000171,95136.0,95135.0,0.23592144]
[1735475485387,0.001171,95136.0,95135.0,0.24292144]
[1735475485588,0.001171,95136.0,95135.0,0.23592144]
[1735475485973,0.002171,95136.0,95135.0,0.24092144]
[1735475486188,0.000171,95136.0,95135.0,0.33292144]
[1735475486404,0.000171,95136.0,95135.0,0.33592144]
[1735475486601,0.001171,95136.0,95135.0,0.34492144]
[1735475487014,0.001171,95136.0,95135.0,0.34192144]
[1735475487159,0.001171,95136.0,95135.0,0.34492144]
[1735475487603,0.001171,95136.0,95135.0,0.37942212]
[1735475487926,0.000171,95136.0,95135.0,0.37042212]
[1735475488062,0.000171,95136.0,95135.0,0.36742212]
[1735475488266,0.000171,95136.0,95135.0,0.33992144]
[1735475488473,0.000171,95136.0,95135.0,0.33292144]
[1735475488834,0.001171,95136.0,95135.0,0.34192144]
[1735475489239,0.001171,95136.0,95135.0,0.33292144]
[1735475489405,0.002171,95136.0,95135.0,0.34192144]
[1735475489591,0.002171,95136.0,95135.0,0.34592144]
[1735475490233,0.002171,95136.0,95135.0,0.37652212]
[1735475490429,0.002171,95136.0,95135.0,0.38152212]
[1735475491179,0.002171,95136.0,95135.0,0.34692144]
[1735475491605,0.002171,95136.0,95135.0,0.24692144]
[1735475495448,0.002171,95136.0,95135.0,0.01623512]
[1735475495654,0.01083587,95142.0,95135.0,0.01623512]
[1735475495885,1.226899,95141.0,95135.0,0.01623512]
[1735475496119,0.748082,95140.0,95135.0,0.01623512]
[1735475496336,2.129235,95143.0,95135.0,0.01623512]
[1735475496485,2.903154,95143.0,95135.0,0.01123512]
[1735475496696,3.105133,95144.0,95135.0,0.01123512]
[1735475496915,2.340275,95144.0,95135.0,0.01423512]
[1735475497121,0.0467,95145.0,95135.0,0.01423512]
[1735475497122,0.0164892,95142.0,95135.0,0.01423512]
[1735475497298,2.33331,95141.0,95135.0,0.00223512]
[1735475497498,2.312997,95141.0,95135.0,0.00723512]
[1735475497695,2.112486,95141.0,95135.0,0.00723512]
[1735475497884,2.262436,95141.0,95135.0,0.00223512]
[1735475498727,2.237824,95141.0,95135.0,0.00223512]
[1735475498913,2.136003,95141.0,95135.0,0.00223512]
[1735475499111,1.702906,95140.0,95135.0,0.00223512]
[1735475499525,1.681806,95140.0,95135.0,0.00223512]
[1735475499729,1.683476,95140.0,95135.0,0.00223512]
[1735475501124,1.683647,95140.0,95135.0,0.00223512]
[1735475501332,1.6821,95139.0,95135.0,0.00223512]
[1735475501533,1.666268,95139.0,95135.0,0.00223512]
[1735475501747,1.94848,95139.0,95135.0,0.00223512]
[1735475501959,0.21018765,95138.0,95135.0,0.00223512]
[1735475502158,3.714187,95137.0,95135.0,0.00223512]
[1735475502359,0.08650444,95136.0,95135.0,0.00223512]
[1735475502617,3.09897344,95136.0,95135.0,0.00223512]
[1735475502790,0.08650444,95136.0,95135.0,0.00223512]
[1735475503168,3.05615575,95136.0,95135.0,0.00223512]
[1735475503340,3.14769175,95136.0,95135.0,0.00223512]
[1735475503544,3.06097375,95136.0,95135.0,0.00223512]
[1735475503952,2.83775275,95136.0,95135.0,0.00223512]
[1735475504089,2.79527975,95136.0,95135.0,0.00223512]
[1735475504452,2.89352675,95136.0,95135.0,0.00223512]
[1735475504811,2.89552675,95136.0,95135.0,0.00223512]
[1735475507186,2.91201796,95136.0,95135.0,0.00223512]
[1735475509201,2.58057365,95136.0,95135.0,0.00223512]
[1735475509409,1.74074865,95136.0,95135.0,0.00223512]
[1735475509736,1.88198876,95136.0,95135.0,0.00223512]
[1735475510911,1.66209665,95136.0,95135.0,0.00223512]
[1735475511123,1.47019065,95136.0,95135.0,0.00223512]
[1735475512409,0.81290865,95136.0,95135.0,0.00223512]
[1735475512610,0.78232365,95136.0,95135.0,0.00223512]
[1735475513124,0.42047721,95136.0,95135.0,0.00223512]
[1735475513370,0.35520421,95136.0,95135.0,0.00223512]
[1735475513594,0.338713,95136.0,95135.0,0.00223512]
[1735475514191,0.337713,95136.0,95135.0,0.00223512]
[1735475514515,0.336713,95136.0,95135.0,0.00223512]
[1735475514673,0.825974,95139.0,95135.0,0.00323512]
[1735475514875,0.825974,95139.0,95135.0,0.00223512]
[1735475515213,0.825974,95139.0,95135.0,0.00323512]
[1735475515544,0.71493,95139.0,95135.0,0.00323512]
[1735475515754,0.719513,95139.0,95135.0,0.00323512]
[1735475515900,0.391053,95138.0,95135.0,0.00223512]
[1735475516112,0.365767,95137.0,95135.0,0.00223512]
[1735475516307,0.558599,95139.0,95135.0,0.00223512]
[1735475516533,0.364103,95138.0,95135.0,0.00223512]
[1735475516721,0.721736,95139.0,95135.0,0.00223512]
[1735475516920,0.54116304,95139.0,95135.0,0.00223512]
[1735475517119,0.125428,95138.0,95135.0,0.00223512]
[1735475517653,0.01649004,95139.0,95135.0,0.00223512]
[1735475517804,0.259713,95138.0,95135.0,0.00223512]
[1735475520917,0.259713,95138.0,95135.0,0.00323512]
[1735475523161,0.02765448,95137.0,95135.0,0.00323512]
[1735475523370,0.965767,95136.0,95135.0,0.00323512]
[1735475523968,0.965767,95136.0,95135.0,0.00223512]
[1735475524924,1.32546,95139.0,95135.0,0.00223512]
[1735475525630,1.132562,95138.0,95135.0,0.00223512]
[1735475526031,1.23277232,95137.0,95135.0,0.00223512]
[1735475526253,0.93799,95136.0,95135.0,0.00323512]
[1735475526452,0.93799,95136.0,95135.0,0.00223512]
[1735475527375,0.93799,95136.0,95135.0,0.00323512]
[1735475527790,0.93799,95136.0,95135.0,0.00223512]
[1735475527966,0.93799,95136.0,95135.0,0.00323512]
[1735475528405,1.05846622,95136.0,95135.0,0.00323512]
[1735475528617,2.61489828,95136.0,95135.0,0.00323512]
[1735475528825,3.19023528,95136.0,95135.0,0.00323512]
[1735475528967,0.28706301,95136.0,95135.0,0.00323512]
[1735475529150,3.54974341,95136.0,95135.0,0.00323512]
[1735475529359,3.35359141,95136.0,95135.0,0.00323512]
[1735475529717,3.03914241,95136.0,95135.0,0.00223512]
[1735475529894,3.03858768,95136.0,95135.0,0.00223512]
[1735475530138,3.04558768,95136.0,95135.0,0.00323512]
[1735475530374,3.142574,95136.0,95135.0,0.00223512]
[1735475530743,3.142574,95136.0,95135.0,0.00323512]
[1735475530744,3.13717428,95136.0,95135.0,0.00323512]
[1735475532656,3.14117428,95136.0,95135.0,0.00323512]
[1735475533081,3.03718796,95136.0,95135.0,0.00323512]
[1735475533734,3.02069806,95136.0,95135.0,0.00323512]
[1735475535666,2.65425106,95136.0,95135.0,0.00323512]
[1735475536112,2.38035906,95136.0,95135.0,0.00323512]
[1735475536490,2.29199706,95136.0,95135.0,0.00323512]
[1735475536724,2.39598338,95136.0,95135.0,0.00323512]
[1735475536926,2.41247515,95136.0,95135.0,0.00323512]
[1735475537307,2.2299423,95136.0,95135.0,0.00323512]
[1735475537511,2.12595598,95136.0,95135.0,0.00323512]
[1735475537717,1.92372077,95136.0,95135.0,0.00323512]
[1735475539544,2.01792688,95136.0,95135.0,0.00323512]
[1735475540766,1.92372077,95136.0,95135.0,0.00323512]
[1735475541747,1.93612051,95136.0,95135.0,0.00323512]
[1735475542060,2.04010683,95136.0,95135.0,0.00323512]
[1735475542936,2.08770683,95136.0,95135.0,0.00323512]
[1735475543279,2.08770683,95136.0,95112.0,0.03219641]
[1735475543470,3.68743274,95135.0,95112.0,0.03219641]
[1735475543655,3.737278,95134.0,95112.0,0.03219641]
[1735475543879,3.92195032,95133.0,95112.0,0.03219641]
[1735475544021,4.117832,95132.0,95098.0,0.0495]
[1735475544217,3.781467,95131.0,95098.0,0.0495]
[1735475544443,0.0821,95132.0,95098.0,0.0495]
[1735475544444,3.47154,95130.0,95098.0,0.0495]
[1735475544638,3.040775,95129.0,95098.0,0.0012855]
[1735475544973,2.54453532,95128.0,95098.0,0.0012855]
[1735475545161,2.141075,95127.0,95098.0,0.0012855]
[1735475545373,2.213364,95126.0,95098.0,0.0012855]
[1735475545598,2.031404,95125.0,95098.0,0.0012855]
[1735475545862,2.021932,95124.0,95098.0,0.0012855]
[1735475546060,2.07219827,95123.0,95098.0,0.0012855]
[1735475546241,2.07219827,95123.0,95099.0,0.0832]
[1735475546242,1.609049,95122.0,95099.0,0.0832]
[1735475546375,1.750909,95121.0,95099.0,0.0832]
[1735475546577,1.204203,95120.0,95099.0,0.0832]
[1735475546826,0.01363227,95123.0,95099.0,0.0832]
[1735475546827,0.881699,95119.0,95099.0,0.0832]
[1735475547082,0.840076,95118.0,95099.0,0.0832]
[1735475547320,0.604653,95117.0,95099.0,0.0832]
[1735475547502,0.496055,95116.0,95099.0,0.0832]
[1735475547700,0.31874,95115.0,95099.0,0.0832]
[1735475547942,0.191674,95114.0,95100.0,0.10398632]
[1735475548099,0.30988,95113.0,95101.0,0.0832]
[1735475548304,0.2271726,95112.0,95103.0,0.0832]
[1735475548624,0.0164926,95112.0,95103.0,0.0832]
[1735475548826,0.0164926,95112.0,95104.0,0.00105137]
[1735475550482,0.0164926,95112.0,95105.0,0.0832]
[1735475552901,0.0164926,95112.0,95105.0,0.0862]
[1735475553337,0.20838,95111.0,95105.0,0.0862]
[1735475553544,0.20838,95111.0,95105.0,0.0872]
[1735475553965,1.075285,95122.0,95105.0,0.0872]
[1735475554170,0.10398632,95121.0,95105.0,0.0862]
[1735475554393,1.158232,95120.0,95105.0,0.0872]
[1735475554613,0.853766,95120.0,95105.0,0.0872]
[1735475554812,0.822319,95119.0,95105.0,0.0872]
[1735475555028,0.387385,95118.0,95105.0,0.0872]
[1735475555225,1.165271,95126.0,95105.0,0.0872]
[1735475555427,1.25952737,95126.0,95105.0,0.0842]
[1735475555634,0.678503,95125.0,95105.0,0.0842]
[1735475555907,0.78151883,95125.0,95105.0,0.0872]
[1735475556127,0.09425637,95126.0,95107.0,0.0762]
[1735475556356,0.302983,95125.0,95109.0,0.0762]
[1735475556576,0.302983,95125.0,95111.0,0.0762]
[1735475556766,0.001,95122.0,95112.0,0.00105126]
[1735475556986,0.243917,95121.0,95112.0,0.00105126]
[1735475557186,0.243917,95121.0,95111.0,0.18018632]
[1735475557594,0.10999,95121.0,95112.0,0.00105112]
[1735475557824,0.001,95125.0,95112.0,0.07975112]
[1735475557993,0.001,95125.0,95113.0,0.0472]
[1735475558223,0.09425637,95129.0,95114.0,0.07975109]
[1735475558426,0.01649193,95122.0,95115.0,0.10398632]
[1735475558570,0.01649193,95122.0,95117.0,0.0787]
[1735475558773,0.01649193,95122.0,95119.0,0.0787]
[1735475559022,0.01649193,95122.0,95121.0,0.0787]
[1735475559231,0.01649193,95122.0,95121.0,0.18268632]
[1735475560474,0.01649193,95122.0,95121.0,0.18668632]
[1735475560894,0.01649193,95122.0,95121.0,0.18868632]
[1735475561827,0.01666293,95122.0,95121.0,0.18868632]
[1735475563602,0.000171,95122.0,95121.0,0.18868632]
[1735475565706,0.000171,95122.0,95121.0,0.23693733]
[1735475565909,0.000171,95122.0,95121.0,0.23588632]
[1735475570214,0.000171,95122.0,95121.0,0.33588632]
[1735475571865,0.00845979,95125.0,95124.0,0.1]
[1735475572071,0.00845979,95125.0,95124.0,0.28078632]
[1735475572266,0.00845979,95125.0,95124.0,0.31418495]
[1735475572690,0.00845979,95125.0,95124.0,0.31318495]
[1735475572886,0.00845979,95125.0,95124.0,0.31218495]
[1735475573408,0.00022177,95136.0,95133.0,0.2241]
[1735475573606,0.00022177,95136.0,95135.0,0.1748]
[1735475573843,0.00022177,95136.0,95135.0,0.31867632]
[1735475574946,0.00022177,95136.0,95135.0,0.32167632]
[1735475575660,0.00022177,95136.0,95135.0,0.33067632]
[1735475577111,0.00022177,95136.0,95135.0,0.29078632]
[1735475577521,0.00022177,95136.0,95135.0,0.28778632]
[1735475578741,0.00022177,95136.0,95135.0,0.29278632]
[1735475582100,0.0167091,95136.0,95135.0,0.29278632]
[1735475582458,0.00022177,95136.0,95135.0,0.29278632]
[1735475590778,0.00022177,95136.0,95135.0,0.11798632]
[1735475591532,0.01670981,95136.0,95135.0,0.11798632]
[1735475594020,0.01670981,95136.0,95135.0,0.014]
[1735475594252,0.09180981,95136.0,95135.0,0.014]
[1735475594753,0.08350916,95136.0,95135.0,0.014]
[1735475594955,0.08350916,95136.0,95124.0,8.54e-05]
[1735475595277,0.0751,95136.0,95135.0,0.008]
[1735475595581,0.0751,95136.0,95135.0,0.002]
[1735475595725,0.0751,95136.0,95125.0,0.10398632]
[1735475595925,0.0751,95136.0,95135.0,0.003]
[1735475596171,0.0751,95136.0,95135.0,0.001]
[1735475596565,0.0751,95136.0,95135.0,0.005]
[1735475598207,0.0915891,95136.0,95135.0,0.004]
[1735475598409,0.0915891,95136.0,95135.0,0.005]
[1735475598667,0.0915891,95136.0,95135.0,0.001]
[1735475598668,0.10078219,95136.0,95135.0,0.001]
[1735475599049,0.10078219,95136.0,95135.0,0.005]
[1735475599283,0.10078219,95136.0,95135.0,0.002]
[1735475599484,0.10078219,95136.0,95135.0,0.007]
[1735475599637,0.0915891,95136.0,95135.0,0.007]
[1735475599840,0.0915891,95136.0,95126.0,0.00105111]
[1735475600060,0.0915891,95136.0,95135.0,0.002]
[1735475600201,0.0001467,95135.0,95126.0,0.00105111]
[1735475601310,0.0495,95134.0,95126.0,0.00105111]
[1735475601796,0.0495,95134.0,95125.0,0.10398632]
[1735475602000,0.0495,95134.0,95126.0,0.003]
[1735475602384,0.0495,95134.0,95126.0,0.004]
[1735475602743,0.0495,95134.0,95126.0,0.001]
[1735475602963,0.0495,95134.0,95124.0,8.54e-05]
[1735475603125,0.0495,95134.0,95124.0,0.10407172]
[1735475603540,0.01649042,95132.0,95126.0,0.003]
[1735475604989,0.01649042,95132.0,95125.0,0.001]
[1735475605552,0.84564757,95131.0,95125.0,0.001]
[1735475605750,0.01649042,95132.0,95126.0,0.004]
[1735475605994,1.503307,95131.0,95126.0,0.004]
[1735475606219,1.503307,95131.0,95124.0,8.54e-05]
[1735475606220,1.404053,95130.0,95124.0,0.0010854]
[1735475606424,1.424586,95131.0,95125.0,0.004]
[1735475606629,1.42743,95131.0,95125.0,0.004]
[1735475606798,0.002,95126.0,95124.0,8.54e-05]
[1735475607000,0.002,95125.0,95124.0,8.54e-05]
[1735475607325,0.01649042,95132.0,95124.0,8.54e-05]